bitfinex-derivatives/quotes_ETHF0:USTF0_20250803
["timestamp","ask_amount","ask_price","bid_price","bid_amount"]
[1754184363147,2.1965,3417.3,3416.7,3.2078]
[1754184363347,3.6694,3416.8,3416.7,4.4922]
[1754184363654,3.6694,3416.8,3416.7,3.8584]
[1754184364155,3.6694,3416.8,3416.7,8.6534]
[1754184364453,3.6694,3416.8,3416.7,9.23888]
[1754184364659,1.2306,3417.1,3417.0,5.4456]
[1754184365047,1.4729,3417.3,3417.2,2.1316]
[1754184365242,20.394,3417.4,3417.2,2.1316]
[1754184365457,2.7035,3417.3,3417.2,2.1316]
[1754184365652,2.7035,3417.3,3417.2,5.4456]
[1754184365850,20.394,3417.4,3417.2,2.1316]
[1754184366047,3.2078,3417.8,3417.3,2.1316]
[1754184366355,24.0644,3417.7,3417.6,5.4456]
[1754184367142,1.4729,3417.7,3417.6,5.4456]
[1754184367346,24.0644,3417.7,3417.6,5.4456]
[1754184367545,24.0644,3417.7,3417.6,4.1111]
[1754184367748,24.0644,3417.7,3417.6,2.2915]
[1754184368457,24.0644,3417.7,3417.6,3.2639]
[1754184368648,3.6694,3417.7,3417.6,5.4456]
[1754184370858,23.6008,3417.8,3417.1,3.2078]
[1754184370859,3.6694,3417.6,3417.5,3.2639]
[1754184371248,3.6694,3417.6,3417.2,1.3345]
[1754184371249,1.0,3418.0,3417.9,6.03087]
[1754184373252,4.6694,3418.0,3417.9,6.03087]
[1754184373964,4.6694,3418.0,3417.9,5.4456]
[1754184374953,4.6694,3418.0,3417.7,3.7931]
[1754184374954,1.4729,3417.8,3417.7,5.4993]
[1754184375254,3.2078,3418.6,3418.5,2.71677]
[1754184375554,3.2078,3418.6,3418.5,6.03077]
[1754184375555,26.3003,3418.6,3418.5,6.03077]
[1754184375751,25.5932,3418.6,3418.5,6.03077]
[1754184376860,22.4842,3418.6,3418.2,1.59231]
[1754184377062,2.0952,3418.3,3418.0,1.55764]
[1754184377365,23.7148,3418.2,3418.1,4.1111]
[1754184377557,2.0952,3417.9,3417.8,3.84917]
[1754184377862,2.0952,3417.9,3417.8,4.69637]
[1754184377863,5.2042,3417.9,3417.8,4.69637]
[1754184378047,5.2042,3417.9,3417.8,6.03087]
[1754184378048,25.5912,3417.9,3417.8,6.03087]
[1754184378662,3.2078,3418.2,3417.8,6.03087]
[1754184378860,23.7383,3418.1,3418.0,6.03085]
[1754184379062,24.3606,3418.1,3418.0,6.03085]
[1754184379364,3.9736,3418.1,3418.0,4.1111]
[1754184379560,25.5902,3418.1,3418.0,4.1111]
[1754184379861,25.5902,3418.1,3417.7,4.5423]
[1754184380058,5.2042,3417.8,3417.7,3.2078]
[1754184380255,25.5902,3417.8,3417.7,5.4993]
[1754184380454,25.5902,3417.8,3417.7,6.4717]
[1754184380855,25.5902,3417.8,3417.7,3.2078]
[1754184381365,23.0885,3417.8,3417.7,8.6534]
[1754184381666,25.5892,3417.8,3417.7,7.3189]
[1754184381853,25.5892,3417.8,3417.7,1.2844]
[1754184382049,28.797,3417.8,3417.7,1.2844]
[1754184382463,28.797,3417.8,3417.7,3.2639]
[1754184382664,25.5892,3417.8,3417.7,5.4456]
[1754184382959,5.2042,3417.8,3417.7,5.4456]
[1754184383159,25.5892,3417.8,3417.7,5.4456]
[1754184383360,25.5892,3417.8,3417.7,4.1111]
[1754184383551,25.5892,3417.8,3417.7,2.2915]
[1754184383750,25.5892,3417.8,3417.4,1.3345]
[1754184383751,28.797,3417.8,3417.4,0.9724]
[1754184383959,5.2042,3417.2,3417.1,5.4993]
[1754184384160,5.2042,3417.2,3416.8,0.6506]
[1754184384161,2.0952,3416.9,3416.8,0.6506]
[1754184384363,25.5892,3416.9,3416.8,0.6506]
[1754184384757,25.5892,3416.9,3416.8,1.2844]
[1754184384959,25.5892,3416.9,3416.8,3.2639]
[1754184385959,25.5892,3416.9,3416.6,3.79328]
[1754184385960,22.4802,3416.9,3416.6,3.79328]
[1754184386155,2.0952,3416.7,3416.6,3.79328]
[1754184386361,2.0952,3416.7,3416.4,0.58552]
[1754184386565,5.2042,3416.5,3416.4,2.87702]
[1754184386764,2.7035,3416.4,3416.3,4.69664]
[1754184386971,20.384,3416.5,3416.4,5.4456]
[1754184387569,25.5882,3416.5,3416.4,5.4456]
[1754184388168,24.6757,3416.5,3416.4,5.4456]
[1754184388870,5.2042,3416.5,3416.4,5.4456]
[1754184389071,25.5892,3416.5,3416.4,5.4456]
[1754184389265,25.5892,3416.5,3416.4,4.1111]
[1754184389461,25.5892,3416.5,3416.4,1.2844]
[1754184390268,25.5892,3416.5,3416.4,3.2639]
[1754184391067,4.4384,3416.9,3416.8,0.58546]
[1754184391261,5.2042,3417.6,3417.5,6.03094]
[1754184391464,23.0885,3417.6,3417.5,6.03094]
[1754184392561,4.5198,3417.9,3417.8,3.73229]
[1754184392768,4.5198,3417.9,3417.8,1.87419]
[1754184392769,25.5253,3417.9,3417.8,1.87419]
[1754184393771,25.5253,3417.9,3417.8,2.77419]
[1754184393962,5.1403,3417.9,3417.8,2.77419]
[1754184394170,25.5243,3417.9,3417.8,2.77419]
[1754184394365,5.1403,3417.9,3417.8,4.58839]
[1754184394670,23.6459,3417.9,3417.8,5.84979]
[1754184395269,3.2619,3417.9,3417.8,5.84979]
[1754184395470,23.6449,3417.9,3417.8,5.84979]
[1754184396874,25.4445,3417.9,3417.8,0.58529]
[1754184399267,4.433,3418.2,3418.1,5.84974]
[1754184399462,24.814,3418.2,3418.1,5.84974]
[1754184399666,23.0224,3418.2,3418.1,5.84974]
[1754184400073,2.6414,3418.2,3418.1,5.84974]
[1754184400266,1.7916,3418.4,3418.1,5.84974]
[1754184400467,8.2613,3418.6,3418.5,4.58827]
[1754184400666,8.2613,3418.6,3418.5,5.84967]
[1754184401073,25.4335,3418.6,3418.5,5.84967]
[1754184401474,25.4335,3418.6,3418.4,0.58518]
[1754184401676,5.0535,3418.5,3418.4,0.58518]
[1754184401879,5.0535,3418.5,3418.4,1.87408]
[1754184402080,25.4335,3418.5,3418.4,3.73218]
[1754184402273,8.2613,3418.5,3418.4,3.73218]
[1754184402578,28.6393,3418.5,3418.4,3.73218]
[1754184402879,0.8801,3418.9,3418.4,5.2645]
[1754184403074,25.4305,3418.8,3418.7,2.145]
[1754184403279,25.4305,3418.8,3418.7,4.0031]
[1754184403978,25.4305,3418.8,3418.7,2.1889]
[1754184404670,3.2619,3418.8,3418.7,3.045]
[1754184404877,3.2619,3418.8,3418.7,5.2645]
[1754184405082,2.3541,3419.0,3418.9,2.145]
[1754184405278,21.8176,3419.0,3418.9,5.2645]
[1754184405574,21.0068,3419.0,3418.9,5.2645]
[1754184405879,2.6414,3419.2,3419.0,0.58508]
[1754184406174,8.2613,3419.5,3419.4,2.77391]
[1754184406378,28.6353,3419.5,3419.4,5.84951]
[1754184406578,8.2613,3419.5,3419.4,5.84951]
[1754184406779,28.6353,3419.5,3419.4,5.84951]
[1754184407176,8.2613,3419.5,3419.4,5.84951]
[1754184407381,8.2613,3419.5,3419.4,0.58501]
[1754184407575,28.6353,3419.5,3419.4,4.58811]
[1754184407775,28.6353,3419.5,3419.4,5.84951]
[1754184408181,28.6333,3419.5,3419.4,4.58811]
[1754184408476,1.4426,3418.9,3418.8,4.89152]
[1754184408685,21.8136,3418.9,3418.8,5.84962]
[1754184408881,20.371,3418.9,3418.8,5.84962]
[1754184409078,1.7916,3419.3,3419.1,0.58506]
[1754184409079,1.1988,3419.2,3419.1,0.58506]
[1754184409383,0.6318,3419.2,3419.1,5.84956]
[1754184409679,3.2078,3419.5,3419.4,0.58501]
[1754184409880,3.2078,3419.9,3419.8,4.58804]
[1754184410076,23.5788,3419.9,3419.8,5.84944]
[1754184410277,28.6323,3419.9,3419.8,5.84944]
[1754184410477,8.2613,3419.9,3419.8,4.58804]
[1754184410677,28.6313,3419.9,3419.8,4.58804]
[1754184410883,5.8492,3419.9,3419.8,4.58804]
[1754184411078,26.8377,3419.9,3419.8,5.2645]
[1754184411283,2.0631,3419.6,3419.5,0.58499]
[1754184411487,5.0535,3419.2,3419.1,0.58506]
[1754184411783,5.0535,3419.2,3419.0,3.2078]
[1754184411784,5.0535,3419.1,3419.0,6.93987]
[1754184412384,2.6414,3419.5,3419.4,1.2889]
[1754184412683,25.4205,3419.5,3419.4,1.2889]
[1754184412880,2.0631,3419.2,3419.1,3.73206]
[1754184413075,22.3766,3419.2,3419.1,5.84956]
[1754184413271,3.2619,3419.4,3419.3,1.2889]
[1754184413478,25.4205,3419.4,3419.3,4.0031]
[1754184414984,25.4205,3419.4,3419.3,4.58812]
[1754184415386,25.4205,3419.4,3419.3,5.84952]
[1754184415587,1.46174,3421.3,3419.7,0.8561]
[1754184415588,1.4426,3419.8,3419.7,0.8561]
[1754184415884,25.4185,3419.8,3419.7,5.2645]
[1754184416281,25.4185,3419.8,3419.7,4.0031]
[1754184416481,5.0535,3419.8,3419.7,4.0031]
[1754184416687,25.4175,3419.8,3419.7,5.2645]
[1754184416883,2.6414,3419.8,3419.7,5.2645]
[1754184417181,21.8066,3419.8,3419.7,5.2645]
[1754184417382,23.0054,3419.8,3419.7,5.2645]
[1754184417986,5.0535,3419.8,3419.7,5.2645]
[1754184418383,0.21251187,3421.2,3420.9,1.2889]
[1754184418581,0.21251187,3421.2,3420.9,5.2645]
[1754184419687,0.21251187,3421.2,3421.0,0.58474]
[1754184419879,4.25292984,3422.6,3421.7,0.58462]
[1754184420091,4.25292984,3422.6,3421.9,3.2078]
[1754184420092,1.1988,3422.4,3421.9,3.2078]
[1754184420395,3.0127,3422.2,3421.8,0.9]
[1754184420600,20.359,3422.1,3421.8,1.8581]
[1754184420898,20.359,3422.4,3422.0,0.58457]
[1754184421200,3.2078,3422.6,3421.9,3.79239]
[1754184421390,3.0127,3422.5,3422.0,1.2614]
[1754184421586,3.1635,3422.3,3422.1,3.2103]
[1754184421802,3.1635,3422.3,3422.0,0.58457]
[1754184421993,1.3204,3422.3,3422.0,0.58457]
[1754184422296,1.3204,3422.4,3422.0,0.58457]
[1754184422498,3.1635,3422.3,3421.9,3.2078]
[1754184422799,3.1635,3422.3,3421.9,5.1845]
[1754184423000,3.1635,3422.4,3421.9,1.9767]
[1754184423198,20.371,3422.4,3421.7,3.2103]
[1754184423395,1.3204,3421.9,3421.6,1.9767]
[1754184423704,3.1635,3421.7,3421.6,1.9767]
[1754184424199,1.3204,3421.4,3421.2,1.2336]
[1754184424408,0.58463,3421.7,3421.1,3.2078]
[1754184424705,3.1635,3421.2,3421.1,4.1908]
[1754184424897,3.1635,3421.2,3421.1,5.1845]
[1754184425297,1.8431,3420.9,3420.7,1.9767]
[1754184425492,1.8431,3420.9,3420.4,1.9767]
[1754184425493,3.1635,3420.6,3420.4,1.9767]
[1754184425696,1.3204,3420.7,3420.6,0.983]
[1754184425900,1.3204,3420.7,3420.6,3.2103]
[1754184426397,3.1635,3420.9,3420.3,7.00296]
[1754184426602,1.8431,3420.7,3420.3,3.2078]
[1754184426810,3.1635,3420.6,3420.5,3.2103]
[1754184427403,0.8991,3420.4,3419.9,5.1845]
[1754184427607,3.2078,3422.0,3420.5,1.15283789]
[1754184427802,1.46095,3423.2,3421.3,1.56769]
[1754184427803,0.58452,3422.4,3421.3,1.56769]
[1754184427998,3.2078,3422.0,3421.4,1.2336]
[1754184428301,0.58465,3421.6,3421.1,3.2078]
[1754184428501,0.58477,3420.9,3420.6,3.2078]
[1754184428693,0.58477,3420.9,3419.5,2.05659378]
[1754184428694,26.18985858,3420.8,3419.8,3.2078]
[1754184428893,0.58492,3420.0,3419.2,2.05659378]
[1754184429106,3.2078,3419.8,3419.2,0.983]
[1754184429400,0.58503,3419.4,3419.2,2.05659378]
[1754184429610,0.58505,3419.2,3419.0,2.05659378]
[1754184429904,1.90555,3418.6,3418.5,2.55908622]
[1754184430105,0.58519,3418.4,3418.3,2.55908622]
[1754184430296,1.3204,3418.3,3418.2,2.55908622]
[1754184430496,23.7158,3418.3,3418.1,2.55908622]
[1754184430706,1.3204,3418.2,3418.0,0.983]
[1754184431007,1.3204,3418.1,3418.0,0.983]
[1754184432307,21.8264,3418.1,3418.0,0.983]
[1754184432611,21.8264,3418.1,3417.9,1.05326292]
[1754184432612,20.505,3418.4,3418.3,3.2103]
[1754184432907,20.514,3418.5,3418.3,0.5852]
[1754184433103,3.2078,3419.0,3418.5,0.983]
[1754184433104,1.3204,3418.7,3418.5,0.983]
[1754184433312,1.3204,3419.1,3418.7,0.983]
[1754184433606,45.3238,3419.4,3418.6,3.2078]
[1754184433806,3.2078,3419.4,3418.6,3.2078]
[1754184433996,20.515,3419.3,3419.2,3.2103]
[1754184434200,3.2078,3419.4,3419.3,3.2103]
[1754184434698,20.6238,3419.4,3419.3,3.2103]
[1754184434906,21.9442,3419.4,3419.3,0.983]
[1754184435409,25.0502,3419.4,3419.3,0.983]
[1754184435908,3.2078,3419.4,3419.3,0.983]
[1754184436210,23.7298,3419.4,3419.3,3.2103]
[1754184436394,1.3204,3419.6,3419.3,3.2103]
[1754184436596,20.518,3419.5,3419.4,3.2103]
[1754184436797,1.3204,3420.0,3419.5,0.585]
[1754184437004,3.67314805,3421.6,3421.5,0.58466]
[1754184437198,3.81984316,3421.6,3421.5,0.88621875]
[1754184437400,5.11e-06,3421.6,3421.5,1.47087875]
[1754184437592,3.67314805,3422.1,3422.0,0.58457]
[1754184437798,0.8991,3422.1,3422.0,2.55209954]
[1754184438105,1.8431,3422.1,3422.0,2.55209954]
[1754184438299,3.1635,3422.1,3422.0,2.55209954]
[1754184438493,24.2195,3422.1,3422.0,2.55209954]
[1754184438702,24.2295,3422.1,3422.0,2.55209954]
[1754184439203,24.2295,3422.1,3421.4,3.2078]
[1754184439400,0.8991,3422.0,3421.4,3.2078]
[1754184440002,21.065,3421.9,3421.4,3.2078]
[1754184440307,0.8991,3421.5,3421.4,4.4414]
[1754184441012,21.9521,3422.1,3421.7,1.2336]
[1754184441200,21.9521,3422.1,3421.6,0.58464]
[1754184441405,21.053,3422.1,3421.9,1.2336]
[1754184441601,21.047,3422.0,3421.4,3.2078]
[1754184441804,0.8991,3421.9,3421.5,0.58466]
[1754184442003,0.8991,3421.8,3421.5,0.58466]
[1754184442204,0.8991,3421.8,3421.7,1.2336]
[1754184443214,3.1635,3421.8,3421.4,3.2078]
[1754184443408,0.8991,3421.6,3421.5,1.2336]
[1754184443813,1.8431,3421.6,3421.5,1.2336]
[1754184444308,1.3204,3421.6,3421.0,3.2078]
[1754184444503,0.8991,3421.0,3420.3,4.4414]
[1754184444709,2.42788,3420.8,3420.3,4.4414]
[1754184444904,0.8991,3420.7,3420.3,3.2078]
[1754184445108,3.74836,3420.3,3420.0,1.2336]
[1754184445311,24.2648,3420.9,3420.0,1.2336]
[1754184445312,21.058,3420.2,3420.0,1.2336]
[1754184445609,22.9011,3420.2,3420.1,1.2336]
[1754184445805,0.5849,3420.1,3419.9,3.2078]
[1754184446017,3.1635,3420.0,3419.9,3.2078]
[1754184446212,3.1635,3420.0,3419.5,1.2336]
[1754184446213,3.1635,3419.6,3419.5,3.2078]
[1754184446407,24.2405,3419.6,3419.5,3.2078]
[1754184447006,3.1635,3419.2,3419.1,3.2078]
[1754184447211,1.8431,3419.2,3419.1,3.2078]
[1754184447420,0.8991,3419.2,3419.1,4.4414]
[1754184447919,0.8991,3419.2,3419.1,3.2078]
[1754184448119,3.1635,3419.2,3419.1,3.2078]
[1754184451019,24.2345,3419.2,3419.1,3.2078]
[1754184451622,0.8991,3419.2,3419.1,4.5972]
[1754184451821,2.3871,3419.7,3419.1,4.7583]
[1754184452021,21.057,3419.6,3419.2,2.13555]
[1754184452227,21.057,3419.6,3419.4,0.58502]
[1754184452433,21.057,3419.6,3419.5,1.5505]
[1754184452723,23.4441,3419.6,3419.3,1.5505]
[1754184453025,2.005,3419.5,3419.2,1.5505]
[1754184453228,0.585,3419.5,3419.1,3.2078]
[1754184453419,0.58502,3419.4,3419.1,3.2078]
[1754184453726,0.9373,3419.3,3419.1,3.2078]
[1754184454027,3.3244,3419.2,3419.1,3.2078]
[1754184454715,3.90945,3419.2,3419.1,3.2078]
[1754184456026,3.3244,3419.2,3419.1,3.2078]
[1754184457122,21.057,3419.6,3419.1,3.2078]
[1754184457123,3.2078,3420.1,3419.1,3.2078]
[1754184457318,0.585,3419.6,3419.2,1.5505]
[1754184457518,0.58502,3419.4,3419.2,1.5505]
[1754184457726,3.3244,3419.3,3419.2,1.5505]
[1754184457928,3.3244,3419.3,3419.2,1.3894]
[1754184458121,3.3244,3419.2,3419.1,3.2078]
[1754184459025,3.90945,3419.2,3418.8,1.3894]
[1754184459232,2.3871,3419.0,3418.7,3.2078]
[1754184459428,2.3871,3418.9,3418.7,4.5972]
[1754184459621,0.9373,3418.8,3418.7,4.7583]
[1754184461934,0.9373,3419.2,3418.9,0.1611]
[1754184462135,0.9373,3419.2,3419.1,0.1611]
[1754184462338,20.992,3419.5,3419.4,0.58502]
[1754184462528,20.992,3419.5,3419.4,2.13552]
[1754184462833,21.9293,3419.5,3419.4,2.13552]
[1754184463034,0.9373,3419.5,3419.4,2.13552]
[1754184463424,0.9373,3419.5,3419.4,1.5505]
[1754184464530,21.9253,3419.5,3419.4,1.5505]
[1754184464739,0.9373,3419.5,3419.4,1.5505]
[1754184464932,20.969,3419.6,3419.5,0.7461]
[1754184465238,2.005,3420.0,3419.9,1.5505]
[1754184465431,22.984,3420.0,3419.9,1.5505]
[1754184465937,24.3034,3420.0,3419.9,1.5505]
[1754184467139,24.2974,3420.0,3419.9,1.5505]
[1754184467638,3.3244,3419.9,3419.5,3.2078]
[1754184468032,2.005,3419.7,3419.5,3.2078]
[1754184468233,3.3244,3419.7,3419.6,1.3894]
[1754184468436,24.2804,3419.7,3419.6,1.5295]
[1754184468849,24.2744,3419.7,3419.6,1.5295]
[1754184469540,3.3244,3419.6,3419.5,4.5972]
[1754184469741,2.005,3419.6,3419.5,3.2078]
[1754184469945,3.3244,3419.6,3419.5,3.2078]
[1754184470236,3.3244,3419.6,3419.0,1.5295]
[1754184470237,3.3244,3419.4,3419.1,3.2078]
[1754184470442,20.943,3419.3,3418.7,1.97453]
[1754184470643,3.3244,3419.2,3418.7,2.4544]
[1754184470839,3.3244,3419.1,3418.7,2.4544]
[1754184471142,3.3244,3418.9,3418.8,3.03952]
[1754184471438,3.3244,3418.9,3418.8,2.4544]
[1754184472835,0.9373,3418.9,3418.8,2.4544]
[1754184473034,3.2078,3419.8,3418.6,0.58515]
[1754184473035,3.2078,3419.8,3419.5,1.9744]
[1754184473240,0.9373,3419.6,3419.4,0.58501]
[1754184473438,0.9373,3419.5,3419.4,0.58501]
[1754184473636,0.9373,3419.5,3419.4,3.03941]
[1754184474336,0.9373,3419.5,3419.4,0.58501]
[1754184474536,0.9373,3419.4,3419.3,0.58503]
[1754184475038,0.9373,3419.4,3419.3,2.4544]
[1754184475239,2.005,3419.3,3419.2,4.49735321]
[1754184475734,2.005,3419.3,3419.2,2.4544]
[1754184475931,0.9373,3419.3,3419.2,4.49735321]
[1754184476345,0.9373,3419.3,3419.2,4.52060291]
[1754184478345,3.3244,3419.3,3419.2,2.06620291]
[1754184478845,3.3244,3419.3,3419.2,0.58505]
[1754184479040,3.3244,3419.3,3419.1,5.27400291]
[1754184479236,20.918,3419.6,3419.1,2.06620291]
[1754184479440,3.3244,3419.5,3419.1,2.06620291]
[1754184479641,0.58504,3419.3,3419.1,2.06620291]
[1754184479835,20.884,3419.2,3419.0,2.06620291]
[1754184480042,20.884,3419.2,3418.9,2.06620291]
[1754184480341,3.3244,3419.0,3418.9,2.06620291]
[1754184482042,0.9272,3418.9,3418.7,5.27400291]
[1754184482243,3.2078,3419.5,3418.7,6.57140291]
[1754184482543,43.16765657,3420.4,3418.6,0.9743]
[1754184482544,21.9589,3420.2,3419.9,0.58493]
[1754184482746,0.9272,3420.1,3419.9,3.79273]
[1754184482952,0.58479,3420.8,3419.9,3.79273]
[1754184482953,20.94,3420.7,3420.6,0.5848]
[1754184483148,21.8672,3420.7,3420.6,2.8565]
[1754184483352,0.9272,3421.0,3420.5,3.2078]
[1754184483549,0.9272,3421.0,3420.9,3.79256]
[1754184483747,0.9272,3421.0,3420.9,6.06426]
[1754184483955,3.3278,3421.0,3420.9,3.2078]
[1754184484260,21.8752,3421.0,3420.9,5.4795]
[1754184484945,24.2758,3421.0,3420.9,5.4795]
[1754184485551,22.9311,3421.0,3420.9,5.4795]
[1754184485739,0.9272,3421.0,3420.9,5.4795]
[1754184485944,21.8672,3421.0,3420.9,5.4795]
[1754184487146,21.8592,3421.0,3420.9,2.2717]
[1754184487548,21.8592,3421.0,3420.5,3.2115]
[1754184487549,0.9272,3421.3,3421.1,0.58472]
[1754184487851,22.9001,3421.2,3421.1,2.2717]
[1754184488153,24.2448,3421.2,3421.1,2.2717]
[1754184489354,21.8442,3421.2,3421.1,2.2717]
[1754184490152,2.4006,3421.1,3421.0,0.58474]
[1754184490353,3.3278,3421.1,3420.7,2.85648]
[1754184490660,3.3278,3421.0,3420.9,0.58475]
[1754184490859,3.3278,3421.0,3420.9,2.85645]
[1754184491058,20.917,3421.2,3420.6,0.58481]
[1754184491362,20.889,3421.1,3420.8,0.58476]
[1754184491749,20.889,3421.1,3420.6,2.2717]
[1754184491953,0.58474,3421.0,3420.5,5.4795]
[1754184492153,0.58474,3421.0,3420.5,3.2078]
[1754184492364,3.3278,3420.7,3420.2,2.2717]
[1754184492555,3.3278,3420.5,3420.2,2.2717]
[1754184493456,20.883,3420.6,3420.1,3.2078]
[1754184493457,3.3278,3420.2,3420.1,3.2078]
[1754184493658,24.2048,3420.2,3420.1,3.2078]
[1754184494850,24.2048,3420.2,3420.1,4.5052]
[1754184495061,21.8042,3420.2,3420.1,5.4795]
[1754184496654,3.3278,3420.1,3419.6,3.2078]
[1754184496960,21.46189,3420.2,3419.6,3.2078]
[1754184497459,3.3278,3420.0,3419.6,3.2078]
[1754184497660,3.3278,3419.8,3419.6,3.2078]
[1754184497865,3.3278,3419.8,3419.7,0.58497]
[1754184498160,20.854,3419.9,3419.7,0.58497]
[1754184498571,3.3278,3419.8,3419.6,3.2078]
[1754184498757,3.3278,3419.7,3419.6,3.2078]
[1754184500363,3.3278,3419.7,3419.4,2.2717]
[1754184500364,3.91275,3419.8,3419.4,2.2717]
[1754184500559,24.64674,3419.9,3419.4,2.2717]
[1754184500758,3.3278,3419.8,3419.4,2.2717]
[1754184500959,24.0618,3419.9,3419.2,3.79285]
[1754184501159,3.3278,3419.6,3419.5,2.2717]
[1754184501365,24.1538,3419.6,3419.5,2.2717]
[1754184502268,3.3278,3419.4,3419.2,5.4795]
[1754184502462,3.3278,3419.5,3419.2,5.4795]
[1754184502662,2.4006,3419.4,3419.3,2.2717]
[1754184503265,2.4006,3419.4,3419.2,3.79284]
[1754184503266,2.4006,3419.7,3419.6,2.85667]
[1754184503470,20.808,3419.8,3419.7,0.58496]
[1754184503663,2.4006,3420.1,3419.7,0.58496]
[1754184503866,3.2078,3420.2,3419.7,0.58496]
[1754184504068,0.9272,3419.8,3419.7,0.58496]
[1754184504263,0.9272,3419.8,3419.7,3.79646]
[1754184504462,3.2078,3420.7,3420.1,0.5849]
[1754184504758,0.9272,3420.4,3420.0,0.58491]
[1754184505073,3.3278,3420.2,3420.1,2.2717]
[1754184505263,24.1478,3420.2,3420.1,2.2717]
[1754184506071,26.3692,3420.2,3420.1,2.2717]
[1754184506271,3.1486,3419.8,3419.7,4.0942]
[1754184506573,26.3532,3419.8,3419.7,4.0942]
[1754184506758,26.3532,3419.8,3419.7,1.8607]
[1754184506958,5.5492,3419.8,3419.7,1.8607]
[1754184507162,26.3582,3419.8,3419.7,2.5226]
[1754184507363,26.3582,3419.8,3419.7,3.82]
[1754184507558,5.5492,3419.8,3419.7,3.82]
[1754184507766,26.3582,3419.8,3419.7,0.8864]
[1754184507978,26.3582,3419.8,3419.4,0.58502]
[1754184507979,4.622,3419.5,3419.4,3.1581]
[1754184508274,20.809,3419.8,3419.3,3.2078]
[1754184508475,3.3278,3419.4,3419.3,5.4795]
[1754184508874,3.3278,3419.4,3419.3,6.06453]
[1754184509768,0.9272,3419.4,3419.3,6.06453]
[1754184510581,3.2078,3420.4,3419.3,6.06453]
[1754184510582,0.9272,3420.1,3419.4,2.2717]
[1754184510873,0.9272,3420.1,3419.7,3.79646]
[1754184510874,20.79,3420.1,3419.7,3.79646]
[1754184511072,20.79,3420.1,3419.9,2.85662]
[1754184511271,3.2078,3420.4,3420.3,0.58486]
[1754184511475,26.3974,3420.4,3420.3,2.2717]
[1754184511673,24.144,3420.4,3420.3,2.2717]
[1754184512168,21.7364,3420.4,3420.3,2.2987]
[1754184512568,3.3049,3420.3,3420.1,5.5065]
[1754184512764,20.782,3420.4,3420.1,5.5065]
[1754184512765,3.3049,3420.2,3420.1,5.5065]
[1754184513971,0.9544,3420.2,3420.1,5.5065]
[1754184515279,3.3049,3420.2,3420.1,3.2078]
[1754184515975,6.30190532,3420.2,3419.6,0.58498]
[1754184516180,3.3049,3420.1,3419.6,0.58498]
[1754184516474,3.3049,3419.8,3419.7,2.2987]
[1754184516775,22.7133,3419.8,3419.7,2.2987]
[1754184517172,1.3546,3420.1,3419.8,0.58495]
[1754184517482,20.759,3420.0,3419.9,3.2238]
[1754184517668,20.759,3420.1,3419.7,0.58497]
[1754184517867,20.759,3420.1,3419.8,2.2987]
[1754184518080,2.3505,3419.9,3419.8,2.2987]
[1754184518376,3.3049,3419.9,3419.8,2.2987]
[1754184520078,0.58477,3420.9,3420.3,1.60086]
[1754184520277,2.3505,3420.5,3420.2,0.58487]
[1754184520480,1.3546,3420.5,3420.2,0.58487]
[1754184520682,20.74,3420.4,3420.3,0.9251]
[1754184520870,3.3049,3420.2,3420.0,4.36490291]
[1754184521074,3.3049,3420.1,3420.0,2.2987]
[1754184521383,0.9544,3420.1,3420.0,4.36490291]
[1754184521576,0.9544,3420.1,3420.0,5.29000291]
[1754184522178,0.9544,3420.1,3420.0,3.2238]
[1754184522477,3.3049,3420.1,3420.0,2.07104412]
[1754184522872,3.3049,3420.4,3420.1,3.2238]
[1754184523074,0.9544,3420.3,3420.2,2.2987]
[1754184523274,3.3049,3420.3,3420.2,2.2987]
[1754184523478,26.2331,3420.3,3420.2,2.2987]
[1754184523876,4.5487,3420.1,3420.0,2.07052275]
[1754184524078,5.5031,3420.1,3420.0,2.07052275]
[1754184524766,4.1485,3420.1,3420.0,2.07052275]
[1754184524970,5.5031,3420.1,3420.0,2.07052275]
[1754184525176,2.1982,3420.1,3419.9,3.2078]
[1754184525474,5.5031,3420.0,3419.9,3.2078]
[1754184525771,2.1982,3420.0,3419.7,2.07052275]
[1754184525972,5.5031,3419.8,3419.7,2.07052275]
[1754184527986,2.1982,3419.8,3419.5,5.27832275]
[1754184528183,5.5031,3419.6,3419.5,5.27832275]
[1754184528687,5.5031,3419.6,3419.5,3.2078]
[1754184529890,2.1982,3419.6,3419.3,2.07052275]
[1754184530188,5.5031,3419.4,3419.3,2.07052275]
[1754184530383,26.1981,3419.4,3419.3,2.07052275]
[1754184531175,5.5031,3419.3,3419.1,2.07052275]
[1754184531488,5.5031,3419.2,3418.9,2.07386911]
[1754184531687,5.5031,3419.0,3418.9,5.92426911]
[1754184531887,5.5031,3419.0,3418.9,6.56516911]
[1754184534283,3.2078,3419.2,3419.0,0.58509]
[1754184534478,5.5031,3419.4,3419.3,4.4913]
[1754184534684,26.1701,3419.4,3419.3,4.4913]
[1754184534985,21.6214,3419.4,3419.3,5.4164]
[1754184535183,3.1526,3419.8,3419.7,4.4913]
[1754184535386,23.8166,3419.8,3419.7,4.4913]
[1754184535592,26.1671,3419.8,3419.7,4.4913]
[1754184536187,26.1931,3419.8,3419.7,4.4913]
[1754184536991,26.1881,3419.8,3419.7,4.4913]